Cogmind - Beta 12 X6 @@@ ROGUE MODE // 2023.02.04 @ 21:53:22 Player: Decinym Result: Destroyed by as-20270 with Assembled Focal Cannon Performance ------------- Evolutions (4) 2000 Regions Visited (15) 3000 Robots Destroyed (117) 585 Value Destroyed (6511) 6511 Prototype IDs (34) 680 Alien Tech Used (0) 0 Bonus (4706) 4706 TOTAL SCORE: 17482 Bonus ------- High Alert Combat Kills 867 Follower Combat Kills 818 Entered Garrisons 600 Aligned with FarCom 300 Met Imprinter 300 Destroyed Z-Imprinter 1000 Triggered Deep Caves Wall 500 Exposed GOLEM Chamber 500 Friendly Fire -179 Cogmind --------- Core Integrity 0/850 Matter 242/300 Energy 100/100 System Corruption 0% Temperature Cool (18) Movement Walking (210) Ox1 Location -6/Deep Caves Parts ------- > --- POWER (2) -------- (None) > --- PROPULSION (4) --- Zionite Composite Leg I > --- UTILITY (7) ------ Experimental Heat Sink Large Storage Unit Improved Targeting Computer > --- WEAPON (2) ------- RU-N14's Throwing Claymores > --- INVENTORY (15) --- Zionite Light DM Reactor Experimental Heat Sink Zionite Biocell (600) Encrypted Comm Array Phasing AFG Dimensional Node Initializer Power Maul CR-A16's Pointy Stick Peak State ------------ > --- POWER ------------ Light Angular Momentum Engine Zionite Light DM Reactor > --- PROPULSION ------- Light Treads Carbon-fiber Leg Improved Titanium Leg Zionite Composite Leg I > --- UTILITY ---------- Experimental Heat Sink Large Storage Unit Improved Targeting Computer Improved Targeting Computer Zionite Weapon Casing Zionite Heavy Carapace > --- WEAPON ----------- RU-N14's Throwing Claymores RU-N14's Throwing Claymores > --- INVENTORY -------- Compact Battery Encrypted Comm Array Sensor Drone Bay Phasing AFG Dimensional Node Initializer Arc Thrower Proton Cannon Phase Cannon Flak Gun Slug Cannon Improved Grenade Launcher RU-N14's Throwing Claymores RU-N14's Throwing Claymores Power Maul CR-A16's Pointy Stick [Rating: 80] Favorites ----------- Power Light Angular Momentum Engine Engine Light Angular Momentum Engine Power Core Micro Nuclear Core Reactor Zionite Light DM Reactor Propulsion Light Treads Treads Light Treads Leg Improved Titanium Leg Utility Improved Targeting Computer Device Improved Heat Sink Storage Large Storage Unit Processor Improved Targeting Computer Hackware Hacking Suite Protection Hardened Medium Armor Plating Weapon Heavy Particle Cannon Energy Gun Beam Rifle Energy Cannon Heavy Particle Cannon Ballistic Gun Flak Gun Launcher Rocket Launcher Special Weapon RU-N14's Throwing Claymores Impact Weapon Power Maul Build | -11 -10 -10 -10 -9 -8 -8 -8 -8 -7 -7 -6 -6 -6 -6 -6 ------- Run | Jun Mat Min Exi Min Mat Gar Mat Gar Fac Gar Fac Low Low Zio Dee Slots Evolved 8 | . . . . . 4 . . . 2 . 2 . . . . Power 1 | . . . . . . . . . . . 1 . . . . Propulsion 2 | . . . . . 1 . . . 1 . . . . . . Utility 5 | . . . . . 3 . . . 1 . 1 . . . . Weapon . | . . . . . . . . . . . . . . . . Parts Attached 155 | . . 9 1 . 25 9 6 9 26 24 4 7 5 5 25 Power 10 | . . . . . 2 . . . 1 1 2 . 1 1 2 Engine 5 | . . . . . 2 . . . 1 . . . 1 . 1 Core 4 | . . . . . . . . . . 1 2 . . 1 . Reactor 1 | . . . . . . . . . . . . . . . 1 Propulsion 41 | . . 3 . . 9 4 1 2 8 10 . . 1 . 3 Treads 26 | . . 3 . . 9 4 1 2 2 4 . . 1 . . Leg 15 | . . . . . . . . . 6 6 . . . . 3 Wheel . | . . . . . . . . . . . . . . . . Hover . | . . . . . . . . . . . . . . . . Flight . | . . . . . . . . . . . . . . . . Utility 45 | . . 4 1 . 11 1 3 2 4 5 1 2 1 1 9 Device 15 | . . 1 . . 2 . 1 2 1 4 . 1 . . 3 Storage 4 | . . . 1 . 1 . . . 1 . . . . . 1 Processor 6 | . . . . . 1 . 2 . . 1 1 1 . . . Hackware 1 | . . . . . . . . . 1 . . . . . . Protection 19 | . . 3 . . 7 1 . . 1 . . . 1 1 5 Artifact . | . . . . . . . . . . . . . . . . Weapon 59 | . . 2 . . 3 4 2 5 13 8 1 5 2 3 11 Energy Gun 11 | . . 1 . . . . . . 5 3 . . . . 2 Energy Cannon 15 | . . . . . 3 2 2 2 2 1 1 . . . 2 Ballistic Gun 6 | . . 1 . . . . . . 1 1 . 2 1 . . Ballistic Cannon . | . . . . . . . . . . . . . . . . Launcher 16 | . . . . . . 2 . 3 2 2 . 3 1 . 3 Special Weapon 6 | . . . . . . . . . . . . . . 2 4 Impact Weapon 5 | . . . . . . . . . 3 1 . . . 1 . Slashing Weapon . | . . . . . . . . . . . . . . . . Piercing Weapon . | . . . . . . . . . . . . . . . . Special Melee Weapon . | . . . . . . . . . . . . . . . . Unidentified Prototypes 11 | . . 1 . . 1 . . . 1 . . . . 1 7 Parts Lost 50 | . . 1 . . 2 1 . 1 4 18 . 1 6 . 16 Power 6 | . . . . . . . . . 1 1 . . 2 . 2 Propulsion 15 | . . . . . . . . . 1 8 . 1 2 . 3 Utility 20 | . . . . . 2 1 . 1 2 6 . . 1 . 7 Weapon 9 | . . 1 . . . . . . . 3 . . 1 . 4 Highest Loss Streak 13 | . . 1 . . 1 1 . 1 3 10 . 1 6 . 13 To Critical Strikes . | . . . . . . . . . . . . . . . . Average Slot Usage (%) 87 | . 85 88 100 100 97 92 99 98 94 86 81 93 73 80 85 Engine 7 | . 14 14 14 14 9 9 9 9 6 2 . . 4 6 5 Core 1 | . . . . . . . . . . 3 11 13 . . 2 Treads 13 | . . 24 28 28 26 27 27 27 10 6 . . 3 6 5 Leg 7 | . 28 4 . . . . . . 19 23 26 22 6 6 11 Device 10 | . . . . . 10 11 15 16 11 11 6 13 13 13 7 Storage 8 | . 14 14 14 14 9 9 9 9 7 7 6 6 6 6 6 Processor 11 | . . . . . 8 9 11 9 7 7 9 17 20 20 16 Hackware 1 | . . . . . . . . . 6 7 6 6 . . . Protection 7 | . . 3 14 14 14 9 9 9 6 . . . 4 6 11 Energy Gun 2 | . 14 13 14 14 2 . . . 5 4 1 . . . . Energy Cannon 6 | . . . . . 12 17 18 17 6 1 4 6 6 5 . Ballistic Gun 4 | . 14 14 14 14 2 . . . 1 2 6 4 5 6 . Special Weapon 1 | . . . . . . . . . . . . . . . 9 Naked Turns . | . . . . . . . . . . . . . . . . Heaviest Build 70 | 11 11 15 20 20 37 41 43 43 50 50 53 67 58 70 70 Greatest Support 85 | 20 20 40 40 40 63 60 63 63 85 85 77 77 20 20 74 Greatest Overweight (x) 4 | . . . . . . . . . 2 1 . 1 2 3 4 Average Overweight (x) . | . . . . . . . . . . . . . 2 2 1 Largest Inventory Capacity 15 | . 8 8 10 10 10 10 10 10 15 15 15 15 15 15 15 Average Capacity 12 | . 8 8 9 10 10 10 10 10 12 15 15 15 15 15 15 Most Carried 15 | . 6 8 10 8 10 10 10 10 15 14 7 8 9 15 15 Average Carried 9 | . 6 7 8 8 9 9 9 10 11 7 5 7 8 11 14 Final Capacity 15 | 8 8 8 10 10 10 10 10 10 15 15 15 15 15 15 15 Final Carried 14 | 6 6 8 8 8 10 10 10 10 14 5 7 8 8 14 8 Class Distribution -------------------- 38% | Mutant 37% | Scavenger-Mutant 23% | Derelict-Mutant Dominant Class ---------------- Mutant | -10/Materials Mutant | -10/Mines Mutant | -10/Exiles Mutant | -9/Mines Mutant | -8/Materials Scavenger-Mutant | -8/Garrison Scavenger-Mutant | -8/Materials Scavenger-Mutant | -8/Garrison Mutant | -7/Factory Mutant | -7/Garrison Mutant | -6/Factory Mutant | -6/Lower Caves Derelict-Mutant | -6/Lower Caves Derelict-Mutant | -6/Zion Scavenger-Mutant | -6/Deep Caves Resources | -11 -10 -10 -10 -9 -8 -8 -8 -8 -7 -7 -6 -6 -6 -6 -6 ----------- Run | Jun Mat Min Exi Min Mat Gar Mat Gar Fac Gar Fac Low Low Zio Dee Matter Collected 2319 | 186 . 56 . 12 336 221 55 186 218 440 . 249 109 20 231 Remotely . | . . . . . . . . . . . . . . . . Salvage Created 4644 | . . 116 . 23 1142 196 188 635 310 932 . 415 251 . 436 Parts 227 | . . 8 . 5 58 11 13 39 22 35 . 18 8 . 10 Haulers Intercepted 3 | . . . . . 2 . . . 1 . . . . . . Recyclers Shooed 3 | . . 2 . . . . . . 1 . . . . . . Parts Field Recycled . | . . . . . . . . . . . . . . . . Retrieved Matter . | . . . . . . . . . . . . . . . . Parts Self-Destructed 16 | . . . . . . . . . . . . 13 3 . . Prevented . | . . . . . . . . . . . . . . . . Kills | -11 -10 -10 -10 -9 -8 -8 -8 -8 -7 -7 -6 -6 -6 -6 -6 ------- Run | Jun Mat Min Exi Min Mat Gar Mat Gar Fac Gar Fac Low Low Zio Dee Combat Hostiles Destroyed 119 | . . 2 . 2 14 8 3 18 7 25 . 15 4 . 21 Melee 2 | . . . . . . . . . . 2 . . . . . Guns 21 | . . 2 . 2 2 . . . . 8 . 6 1 . . Cannons 39 | . . . . . 12 3 3 15 . 4 . 1 . . 1 AOE 52 | . . . . . . 5 . 3 6 8 . 8 3 . 19 Classes Destroyed 17 | . . 1 . 1 5 . 1 2 1 1 . . 1 . 4 Worker 2 | . . . . . 1 . 1 . . . . . . . . Builder 3 | . . . . . . . 1 . 2 . . . . . . Hauler 3 | . . . . . 2 . . . 1 . . . . . . Recycler 5 | . . . . . 5 . . . . . . . . . . Operator 2 | . . . . . . . . . 2 . . . . . . Swarmer 33 | . . . . 2 3 2 . 5 6 6 . 9 . . . Grunt 27 | . . . . . 2 2 . 6 . 9 . 5 3 . . Brawler 3 | . . . . . . . . 1 . 2 . . . . . Duelist 4 | . . . . . . . . 2 . 1 . . 1 . . Sentry 22 | . . 2 . . 8 4 3 2 1 1 . 1 . . . Hunter 5 | . . . . . 1 . . 2 . 2 . . . . . Programmer 4 | . . . . . . . . . . 4 . . . . . Z-Light 1 | . . . . . . . . . . . . . . . 1 Samaritan 3 | . . . . . . . . . . . . . 3 . . Assembler 1 | . . . . . . . . . . . . . . . 1 Assembled 18 | . . . . . . . . . . . . . . . 18 Golem 1 | . . . . . . . . . . . . . . . 1 Best Kill Streak 18 | . . 2 . 2 4 3 1 4 4 5 . 4 4 . 18 Combat Bots Only 17 | . . 2 . 2 2 3 1 4 3 5 . 4 4 . 17 Max Kills in Single Turn 7 | . . 1 . 1 1 2 1 2 3 3 . 2 2 . 7 Gunslinging . | . . . . . . . . . . . . . . . . Exploded 7 | . . . . . . 2 . 2 3 3 . 2 2 . 7 Melee 1 | . . . . . . . . . . 1 . . . . . Uniques/NPCs Destroyed 1 | . . . . . . . . . . . . . . . 1 Z-Imprinter (-6/Deep Caves) Combat | -11 -10 -10 -10 -9 -8 -8 -8 -8 -7 -7 -6 -6 -6 -6 -6 -------- Run | Jun Mat Min Exi Min Mat Gar Mat Gar Fac Gar Fac Low Low Zio Dee Damage Taken 9771 | . 8 365 . 206 599 568 89 419 839 2892 . 685 354 . 2747 Core 1660 | . . 76 . 18 81 76 . 45 76 400 . 75 55 . 758 Absorbed by Shields 326 | . . . . . . 174 23 85 . 44 . . . . . Redirected to Shielding 282 | . . . . . . . . . . . . . . . 282 Regen/Repaired (Parts) 130 | . . . . . . . . . . . . . . 130 . Core Remaining (%) 64 | 100 . . . 62 . . . 63 . 32 . . . . . Volleys Fired 319 | . . 13 3 8 66 20 8 46 17 69 . 26 21 . 22 Largest 2 | . . 2 2 2 2 2 2 2 2 2 . 2 2 . 2 Hottest 160 | . . 70 76 76 150 150 160 160 160 150 . 113 113 . 106 Shots Fired 557 | . . 26 6 16 131 33 16 84 30 125 . 42 22 . 26 Gun 224 | . . 26 6 16 48 . . . 11 97 . 16 1 . 3 Cannon 282 | . . . . . 83 26 16 76 17 25 . 16 17 . 6 Launcher 40 | . . . . . . 7 . 8 2 3 . 10 4 . 6 Special 11 | . . . . . . . . . . . . . . . 11 Kinetic 76 | . . 23 3 8 24 . . . . 1 . 16 1 . . Thermal 421 | . . 3 3 8 107 26 16 76 28 121 . 16 17 . . Explosive 51 | . . . . . . 7 . 8 2 3 . 10 4 . 17 Electromagnetic 9 | . . . . . . . . . . . . . . . 9 Robot Hit Streak 22 | . . 6 . 1 13 9 8 22 12 14 . 9 11 . 14 Robot Miss Streak 8 | . . 3 . 5 5 3 2 2 2 2 . 8 1 . 1 Penetration Max . | . . . . . . . . . . . . . . . . Secondary Targets 4 | . . 1 . . 1 . . . . 2 . . . . . Max Gunslinging Chain 1 | . . 1 . . 1 . . . . 1 . . . . . Shots Hit Robots 350 | . . 19 . 5 77 18 10 40 20 103 . 29 14 . 15 Core Hits 250 | . . 6 . 2 28 16 4 32 13 38 . 47 21 . 43 Critical Kills 1 | . . . . . . . . . . 1 . . . . . Critical Parts Destroyed 6 | . . . . . 1 . . . . 5 . . . . . Critical Strikes 15 | . . . . . 1 . . . 1 12 . . . . 1 Burn 7 | . . . . . . . . . 1 6 . . . . . Destroy 1 | . . . . . 1 . . . . . . . . . . Smash 6 | . . . . . . . . . . 6 . . . . . Sever 1 | . . . . . . . . . . . . . . . 1 Melee Attacks 48 | . . . . . . . . . 11 30 . . . 7 . Impact 48 | . . . . . . . . . 11 30 . . . 7 . Slashing . | . . . . . . . . . . . . . . . . Piercing . | . . . . . . . . . . . . . . . . Sneak Attacks 3 | . . . . . . . . . 2 1 . . . . . Combat Hostiles 1 | . . . . . . . . . . 1 . . . . . Follow-up Attacks . | . . . . . . . . . . . . . . . . Damage Inflicted 13597 | . . 169 . 50 1622 788 262 1579 1017 3408 . 1219 977 . 2506 Guns 2451 | . . 169 . 41 394 . . . 162 1418 . 222 21 . 24 Cannons 4159 | . . . . . 1200 325 262 970 283 377 . 299 304 . 139 Explosions 5408 | . . . . . . 463 . 609 337 661 . 698 652 . 1988 Melee 1163 | . . . . . . . . . 218 945 . . . . . Ramming 67 | . . . . 9 28 . . . 17 7 . . . . 6 Kinetic 573 | . . 133 . 41 133 . . . . 23 . 222 21 . . Thermal 5874 | . . 36 . . 1461 325 262 970 445 1772 . 299 304 . . Explosive 5408 | . . . . . . 463 . 609 337 661 . 698 652 . 1988 Electromagnetic 163 | . . . . . . . . . . . . . . . 163 Impact 1163 | . . . . . . . . . 218 945 . . . . . Slashing 349 | . . . . . . . . . . . . . . . 349 Piercing . | . . . . . . . . . . . . . . . . Highest Corruption 20 | . . . . . 3 3 3 3 10 20 . . . . . Average Corruption 6 | . . . . . 2 3 3 3 9 15 . . . . . Corruption Purged . | . . . . . . . . . . . . . . . . Corruption Blocked . | . . . . . . . . . . . . . . . . Effects 135 | . . . . . 3 24 3 19 23 63 . . . . . Message Errors 35 | . . . . . 1 8 1 6 3 16 . . . . . Matter Fused 30 | . . . . . . 7 1 5 4 13 . . . . . Heat Flow Errors 9 | . . . . . 1 1 . 2 . 5 . . . . . Energy Discharges 23 | . . . . . . 3 1 1 7 11 . . . . . Parts Rejected 2 | . . . . . . . . . 1 1 . . . . . Data Loss (minor) 13 | . . . . . . 2 . 2 5 4 . . . . . Data Loss (major) 9 | . . . . . . 1 . 3 . 5 . . . . . Misfires 4 | . . . . . . 1 . . 1 2 . . . . . Alerts 4 | . . . . . . 1 . . 1 2 . . . . . Misdirections 2 | . . . . . . . . . . 2 . . . . . Weapon Failures 4 | . . . . . 1 . . . 1 2 . . . . . Overload Shots . | . . . . . . . . . . . . . . . . Overflow Damage 573 | . . . . . 33 . . 10 . 290 . 26 127 . 87 Projectiles 144 | . . . . . 30 . . 10 . . . 26 65 . 13 Explosions 136 | . . . . . . . . . . . . . 62 . 74 Melee 293 | . . . . . 3 . . . . 290 . . . . . Knockbacks 2 | . . . . . . . . . . 2 . . . . . Impact 2 | . . . . . . . . . . 2 . . . . . Kinetic . | . . . . . . . . . . . . . . . . Secondary . | . . . . . . . . . . . . . . . . Self-Inflicted Damage 405 | . . . . . . 41 . 29 . 95 . 72 168 . . Shots 12 | . . . . . . 3 . 2 . 1 . 2 4 . . Rammed 9 | . . 2 . 1 3 . . . . . . . . . 3 Targets Rammed 14 | . . 2 . 1 4 . 1 . 1 2 . . . . 3 Kicked 3 | . . . . . . . . . 1 2 . . . . . Crushed 2 | . . . . . 1 . 1 . . . . . . . . Highest Temperature 330 | . . 77 67 251 285 180 231 224 210 330 . 66 . . 36 Average Temperature 78 | . . 43 31 126 64 64 73 75 59 121 . 24 . . 14 Received Heat Transfer 1689 | . . 108 . . 162 177 21 153 66 472 . 219 72 . 239 Effects 5 | . . . . . . . 3 . . 2 . . . . . Energy Bleed 1 | . . . . . . . . . . 1 . . . . . Interference 3 | . . . . . . . 3 . . . . . . . . Short Circuit 1 | . . . . . . . . . . 1 . . . . . Siege Activations . | . . . . . . . . . . . . . . . . Robots Corrupted 1 | . . . . . . . . . . . . . . . 1 Combat Hostiles 1 | . . . . . . . . . . . . . . . 1 Parts Fried 4 | . . . . . 2 . . . . 2 . . . . . Impact Corruptions 16 | . . . . . 1 . . . . 15 . . . . . Robots Melted 2 | . . . . . . . . . 1 1 . . . . . Combat Hostiles 2 | . . . . . . . . . 1 1 . . . . . Parts Melted 23 | . . 1 . . 2 . 1 8 5 6 . . . . . Heat Transferred 10511 | . . 111 . . 2442 481 500 1900 883 3454 . 370 370 . . Parts Sabotaged . | . . . . . . . . . . . . . . . . Parts Stolen . | . . . . . . . . . . . . . . . . Parts Stripped . | . . . . . . . . . . . . . . . . Power Chain Reactions . | . . . . . . . . . . . . . . . . Missiles Intercepted . | . . . . . . . . . . . . . . . . Alert | -11 -10 -10 -10 -9 -8 -8 -8 -8 -7 -7 -6 -6 -6 -6 -6 ------- Run | Jun Mat Min Exi Min Mat Gar Mat Gar Fac Gar Fac Low Low Zio Dee Peak Influence 1400 | . . 45 . 65 391 905 648 1400 797 1328 724 . . . . Initial 735 | . . . . . 25 92 430 326 735 284 697 . . . . Average 495 | . . 1 . 12 121 465 541 925 531 884 712 . . . . Maximum Alert Level 4 | . . . . . 1 3 2 4 3 4 3 . . . . Low Security (%) 34 | . 100 100 . 100 81 25 . . . . . . . . . Level 1 13 | . . . . . 18 19 . 4 36 15 . . . . . Level 2 18 | . . . . . . 23 100 21 39 17 9 . . . . Level 3 20 | . . . . . . 31 . 38 23 20 90 . . . . Level 4 13 | . . . . . . . . 34 . 46 . . . . . Level 5 . | . . . . . . . . . . . . . . . . High Security . | . . . . . . . . . . . . . . . . Max Security . | . . . . . . . . . . . . . . . . Squads Dispatched 3 | . . . . . . . . . 3 . . . . . . Investigation 2 | . . . . . . . . . 2 . . . . . . Extermination . | . . . . . . . . . . . . . . . . Reinforcement 1 | . . . . . . . . . 1 . . . . . . Assault . | . . . . . . . . . . . . . . . . Garrison . | . . . . . . . . . . . . . . . . Intercept . | . . . . . . . . . . . . . . . . Searches Triggered . | . . . . . . . . . . . . . . . . Construction Impeded . | . . . . . . . . . . . . . . . . Haulers Reinforced . | . . . . . . . . . . . . . . . . Active Scanning Responses . | . . . . . . . . . . . . . . . . Cargo Convoy Interrupts . | . . . . . . . . . . . . . . . . Stealth | -11 -10 -10 -10 -9 -8 -8 -8 -8 -7 -7 -6 -6 -6 -6 -6 --------- Run | Jun Mat Min Exi Min Mat Gar Mat Gar Fac Gar Fac Low Low Zio Dee Distress Signals 1 | . . . . . 1 . . . . . . . . . . Communications Jammed . | . . . . . . . . . . . . . . . . Distress Signals . | . . . . . . . . . . . . . . . . Times Spotted 221 | . 2 2 8 3 28 28 4 29 15 36 1 14 4 . 47 Peak Tracking Total 37 | . 3 2 9 3 4 4 1 5 4 5 1 3 4 . 37 Tactical Retreats 18 | . . . . 1 2 2 . 1 . 11 . . . . 1 Traps | -11 -10 -10 -10 -9 -8 -8 -8 -8 -7 -7 -6 -6 -6 -6 -6 ------- Run | Jun Mat Min Exi Min Mat Gar Mat Gar Fac Gar Fac Low Low Zio Dee Traps Triggered 10 | . . . . . 5 . 1 . 1 3 . . . . . Indirectly . | . . . . . . . . . . . . . . . . Trap Hack Attempts . | . . . . . . . . . . . . . . . . Triggered . | . . . . . . . . . . . . . . . . Disarmed . | . . . . . . . . . . . . . . . . Reprogrammed . | . . . . . . . . . . . . . . . . Reused . | . . . . . . . . . . . . . . . . Traps Extracted . | . . . . . . . . . . . . . . . . Installed . | . . . . . . . . . . . . . . . . Triggered . | . . . . . . . . . . . . . . . . Machines | -11 -10 -10 -10 -9 -8 -8 -8 -8 -7 -7 -6 -6 -6 -6 -6 ---------- Run | Jun Mat Min Exi Min Mat Gar Mat Gar Fac Gar Fac Low Low Zio Dee Machines Disabled 25 | . . . 2 . . 1 1 5 2 8 . . 1 . 5 Max in Single Turn 2 | . . . 1 . . 1 . 1 1 2 . . 1 . 1 Garrison Relay 10 | . . . . . . 1 . 4 . 5 . . . . . Machines Repaired . | . . . . . . . . . . . . . . . . Machines Sabotaged . | . . . . . . . . . . . . . . . . Overloaded Fab Kills . | . . . . . . . . . . . . . . . . Hacking | -11 -10 -10 -10 -9 -8 -8 -8 -8 -7 -7 -6 -6 -6 -6 -6 --------- Run | Jun Mat Min Exi Min Mat Gar Mat Gar Fac Gar Fac Low Low Zio Dee Machines Accessed 29 | . . 2 2 . 7 3 3 3 8 . 1 . . . . Terminals 22 | . . . . . 6 3 2 3 7 . 1 . . . . Fabricators . | . . . . . . . . . . . . . . . . Repair Stations . | . . . . . . . . . . . . . . . . Recycling Units . | . . . . . . . . . . . . . . . . Scanalyzers . | . . . . . . . . . . . . . . . . Garrison Access 3 | . . . . . 1 . 1 . 1 . . . . . . Total Hacks 75 | . . 2 2 . 19 7 7 8 27 . 3 . . . . Successful 35 | . . 2 2 . 10 1 6 2 11 . 1 . . . . Failed 40 | . . . . . 9 6 1 6 16 . 2 . . . . Catastrophic 11 | . . . . . 4 1 . 1 5 . . . . . . Database Lockouts . | . . . . . . . . . . . . . . . . Manual 31 | . . . 1 . 10 . 6 1 12 . . . . 1 . Terminals 67 | . . . . . 18 7 6 8 25 . 3 . . . . Fabricators . | . . . . . . . . . . . . . . . . Repair Stations . | . . . . . . . . . . . . . . . . Recycling Units . | . . . . . . . . . . . . . . . . Scanalyzers . | . . . . . . . . . . . . . . . . Garrison Access 4 | . . . . . 1 . 1 . 2 . . . . . . Terminal Hacks 25 | . . 2 2 . 6 1 3 2 8 . 1 . . . . Record 1 | . . . 1 . . . . . . . . . . . . Open Door 3 | . . 2 . . . . . 1 . . . . . . . Branch Access Points 1 | . . . . . 1 . . . . . . . . . . Terminal Index 1 | . . . . . . . . . 1 . . . . . . Garrison Index 1 | . . . . . . . . . 1 . . . . . . Alert Level 4 | . . . . . 1 . 2 . 1 . . . . . . Unreport Threat 6 | . . . . . 2 . 1 . 3 . . . . . . Zone Layout 5 | . . . . . 2 . . . 2 . 1 . . . . Garrison Registry 1 | . . . . . . 1 . . . . . . . . . Patrol Navigation 1 | . . . . . . . . 1 . . . . . . . EX-Prototype ID Bank 1 | . . . 1 . . . . . . . . . . . . Fabricator Hacks . | . . . . . . . . . . . . . . . . Repair Station Hacks . | . . . . . . . . . . . . . . . . Recycling Unit Hacks . | . . . . . . . . . . . . . . . . Scanalyzer . | . . . . . . . . . . . . . . . . Garrison Access Hacks 3 | . . . . . 1 . 1 . 1 . . . . . . Unlock Access 3 | . . . . . 1 . 1 . 1 . . . . . . Unauthorized Hacks 7 | . . . . . 3 . 2 . 2 . . . . . . Terminals 7 | . . . . . 3 . 2 . 2 . . . . . . Botnet 6 | . . . . . 2 . 2 . 2 . . . . . . Disrupt 1 | . . . . . 1 . . . . . . . . . . Fabricators . | . . . . . . . . . . . . . . . . Repair Stations . | . . . . . . . . . . . . . . . . Recycling Units . | . . . . . . . . . . . . . . . . Scanalyzers . | . . . . . . . . . . . . . . . . Garrison Access . | . . . . . . . . . . . . . . . . Data Cores Recovered 1 | . . . . . . . . . 1 . . . . . . Used . | . . . . . . . . . . . . . . . . Hacking Detections 21 | . . . . . 5 2 2 3 8 . 1 . . . . Full Trace Events 5 | . . . . . . 2 . 1 2 . . . . . . Feedback Events 1 | . . . . . . . . . 1 . . . . . . Corruption 1 | . . . . . . . . . 1 . . . . . . Feedback Blocked . | . . . . . . . . . . . . . . . . Robot Schematics Acquired . | . . . . . . . . . . . . . . . . Robots Built . | . . . . . . . . . . . . . . . . Authchips . | . . . . . . . . . . . . . . . . Time . | . . . . . . . . . . . . . . . . Total Robot Build Rating . | . . . . . . . . . . . . . . . . Part Schematics Acquired . | . . . . . . . . . . . . . . . . Parts Built . | . . . . . . . . . . . . . . . . Authchips . | . . . . . . . . . . . . . . . . Time . | . . . . . . . . . . . . . . . . Total Part Build Rating . | . . . . . . . . . . . . . . . . Parts Repaired . | . . . . . . . . . . . . . . . . Time . | . . . . . . . . . . . . . . . . Parts Recycled . | . . . . . . . . . . . . . . . . Recycled Matter . | . . . . . . . . . . . . . . . . Retrieved Matter . | . . . . . . . . . . . . . . . . Retrieved Components . | . . . . . . . . . . . . . . . . Parts Scanalyzed . | . . . . . . . . . . . . . . . . Part Schematics Acquired . | . . . . . . . . . . . . . . . . Parts Damaged . | . . . . . . . . . . . . . . . . Bothacking | -11 -10 -10 -10 -9 -8 -8 -8 -8 -7 -7 -6 -6 -6 -6 -6 ------------ Run | Jun Mat Min Exi Min Mat Gar Mat Gar Fac Gar Fac Low Low Zio Dee Used RIF Installer . | . . . . . . . . . . . . . . . . Robots Hacked . | . . . . . . . . . . . . . . . . Non-combat . | . . . . . . . . . . . . . . . . Combat . | . . . . . . . . . . . . . . . . Robot Hacks Applied . | . . . . . . . . . . . . . . . . Relay Couplers Released 47 | . . . . . . 5 . 18 . 24 . . . . . Machine Destruction 47 | . . . . . . 5 . 18 . 24 . . . . . Fabnet Peak Effective % . | . . . . . . . . . . . . . . . . Robots Rewired 7 | . . . . . . 4 . 3 . . . . . . . Allies Hacked . | . . . . . . . . . . . . . . . . Hacks Repelled . | . . . . . . . . . . . . . . . . Allies | -11 -10 -10 -10 -9 -8 -8 -8 -8 -7 -7 -6 -6 -6 -6 -6 -------- Run | Jun Mat Min Exi Min Mat Gar Mat Gar Fac Gar Fac Low Low Zio Dee Total Allies 17 | . . 1 . . . 4 . 3 . . . . . 8 1 Largest Group 9 | . . 1 . . . 4 3 5 . . . . . 8 9 Highest-Rated Group 474 | . . 31 . . . 134 109 163 . . . . . 355 474 Highest-Rated Ally 119 | . . 31 . . . 39 39 39 . . . . . 96 119 Total Orders 3 | . . . . . . . . . . . . 3 . . . EXPLORE 2 | . . . . . . . . . . . . 2 . . . RETURN 1 | . . . . . . . . . . . . 1 . . . Ally Attacks 241 | . . . 14 . . 26 10 47 . . . . . . 144 Total Damage 6067 | . . . 690 . . 404 114 723 . . . . . . 4136 Kills 66 | . . . 7 . . 8 1 11 . . . . . . 39 Allies Corrupted . | . . . . . . . . . . . . . . . . Allies Melted . | . . . . . . . . . . . . . . . . Turrets Deployed 2 | . . . 2 . . . . . . . . . . . . Intel | -11 -10 -10 -10 -9 -8 -8 -8 -8 -7 -7 -6 -6 -6 -6 -6 ------- Run | Jun Mat Min Exi Min Mat Gar Mat Gar Fac Gar Fac Low Low Zio Dee Robot Analysis Total . | . . . . . . . . . . . . . . . . Derelict Logs Recovered 6 | . . 1 . 1 . . . . . . . 1 1 2 . Drone Launches 20 | . . . . . . . . . . . . 20 . . . Drone Recoveries 19 | . . . . . . . . . . . . 19 . . . Exploration | -11 -10 -10 -10 -9 -8 -8 -8 -8 -7 -7 -6 -6 -6 -6 -6 ------------- Run | Jun Mat Min Exi Min Mat Gar Mat Gar Fac Gar Fac Low Low Zio Dee Turns Passed 14996 | . 63 1048 630 119 1337 1449 267 1241 696 1379 203 473 1884 2268 1939 Spaces Moved 7050 | 1 53 545 371 60 654 821 139 677 393 645 151 221 677 821 821 Core . | . . . . . . . . . . . . . . . . Treads 3697 | . . 525 371 60 654 821 139 677 107 109 . . . . 234 Legs 3353 | 1 53 20 . . . . . . 286 536 151 221 677 821 587 Wheels . | . . . . . . . . . . . . . . . . Hover . | . . . . . . . . . . . . . . . . Flight . | . . . . . . . . . . . . . . . . Fastest Speed 120 | 120 120 120 160 160 160 160 160 160 130 130 130 130 270 270 120 Average Speed 186 | 120 120 158 160 160 160 160 160 160 138 134 130 170 270 270 221 Slowest Speed 400 | 120 120 160 160 160 160 160 160 160 270 200 130 200 270 340 400 Overloaded Moves . | . . . . . . . . . . . . . . . . Propulsion Burnouts . | . . . . . . . . . . . . . . . . Robots Hopped . | . . . . . . . . . . . . . . . . Cave-ins Triggered 1 | . . . . . . . . . 1 . . . . . . Exploration Rate (%) 51 | 2 21 67 69 22 58 86 17 90 15 63 5 58 82 84 77 Regions Visited 15 Branch Regions 7 Pre-discovered Areas 5 | . . . 1 . . . . . . . . 1 . 3 . Known Exits Taken 7 | . . . . . 1 . 1 . 1 . 1 1 1 1 . Unknown Exits Taken 5 | 1 1 1 1 1 . . . . . . . . . . . Scrap Searched 8 | . . . . . . . . . . . . 3 2 3 . Spaces Dug 56 | . . . . . 7 . . 35 9 . . . 3 2 . Terrain Destroyed 401 | . . . . . 33 41 4 64 22 80 . 70 39 2 46 Melee 11 | . . . . . . . . . 9 . . . . 2 . Projectile 49 | . . . . . 33 . 4 . . 1 . 6 4 . 1 AOE 341 | . . . . . . 41 . 64 13 79 . 64 35 . 45 Terrain Rammed . | . . . . . . . . . . . . . . . . Walls Destroyed . | . . . . . . . . . . . . . . . . Machines Disabled . | . . . . . . . . . . . . . . . . Actions | -11 -10 -10 -10 -9 -8 -8 -8 -8 -7 -7 -6 -6 -6 -6 -6 --------- Run | Jun Mat Min Exi Min Mat Gar Mat Gar Fac Gar Fac Low Low Zio Dee Total 8248 | . 52 708 404 68 819 925 168 749 486 962 157 273 711 859 907 Wait 477 | . . 124 25 . 42 10 6 4 25 187 . 18 7 17 12 Move 7036 | . 52 544 370 59 654 820 139 676 392 643 150 220 676 820 821 Hop . | . . . . . . . . . . . . . . . . Pick Up 48 | . . 7 2 . 10 1 2 . 5 2 1 2 2 8 6 Fast Attach 58 | . . 4 . . 11 . 4 1 11 7 4 1 2 1 12 Attach 36 | . . 3 . . 6 1 . . 5 10 . 1 2 1 7 Detach 6 | . . . . . 1 . . . 3 . 1 . . . 1 Swap 61 | . . 2 1 . 8 8 2 8 10 7 . 5 1 3 6 Drop 70 | . . 9 3 . 17 5 6 3 6 1 1 . . 2 17 Fire 319 | . . 13 3 8 66 20 8 46 17 69 . 26 21 . 22 Melee 48 | . . . . . . . . . 11 30 . . . 7 . Ram 1 | . . . . . . . . . . 1 . . . . . Kick 3 | . . . . . . . . . 1 2 . . . . . Crush 11 | . . 2 . 1 4 . 1 . . . . . . . 3 Escape Stasis 3 | . . . . . . . . . . 3 . . . . . Rewire 71 | . . . . . . 60 . 11 . . . . . . . Trap . | . . . . . . . . . . . . . . . . Miscellaneous . | . . . . . . . . . . . . . . . . Route ------- -11/Junkyard -10/Materials -10/Mines (discovered 3 exits: [*Mat x2] / *Exi) -10/Exiles -9/Mines -8/Materials (discovered 3 exits: *Fac x2 / Gar) -8/Garrison (discovered 4 exits: *Fac x3 / *Mat) -8/Materials -8/Garrison (discovered 3 exits: *Fac x3) -7/Factory -7/Garrison (discovered 2 exits: *Fac x2) -6/Factory -6/Lower Caves -6/Lower Caves (discovered 2 exits: [*Fac] / *Zio) -6/Zion (discovered 2 exits: *Dee / [*Pro]) -6/Deep Caves (discovered 1 exit: [*Pro]) History --------- Turn | Location | Event 1 | -11/Junkyard | Discovered new exit (range 0) 1 | -11/Junkyard | Entered Materials 46 | -10/Materials | Discovered new exit (range 16) 64 | -10/Materials | Entered Mines 67 | -10/Mines | Learned Materials emergency access door positions 68 | -10/Mines | Met a Derelict bent on vengeance 76 | -10/Mines | Met a Derelict who couldn't figure out how to use a Trap Extractor 254 | -10/Mines | Deemed a non-threat by the Exiles lab entrance 314 | -10/Mines | Build established: Mutant 396 | -10/Mines | Received a Mining Laser from a helpful Derelict 585 | -10/Mines | Received a Rocket Launcher from a helpful Derelict 658 | -10/Mines | Discovered new exit (range 4) 897 | -10/Mines | Discovered new exit (range 8) 923 | -10/Mines | Found the Drone Emporium 931 | -10/Mines | Found Prototype Device 931 | -10/Mines | Identified Sensor Drone Bay 1106 | -10/Mines | Discovered new exit (range 5) 1112 | -10/Mines | Entered Exiles 1154 | -10/Exiles | Met 8R-AWN 1180 | -10/Exiles | Met EX-HEX 1271 | -10/Exiles | Met EX-DEC 1309 | -10/Exiles | Learned location of Zion (-6) 1418 | -10/Exiles | Met EX-BIN 1436 | -10/Exiles | Aligned with FarCom system 1437 | -10/Exiles | Given EX-Vault access code 1477 | -10/Exiles | Opened EX-Vault 1495 | -10/Exiles | Found Deploy-a-Sentry 1497 | -10/Exiles | Found Deploy-a-Sentry 1534 | -10/Exiles | Warned to stay clear of 0b10 Research branches 1676 | -10/Exiles | Attacked by the Exiles 1680 | -10/Exiles | DAS Turret deployed 1683 | -10/Exiles | DAS Turret deployed 1705 | -10/Exiles | Discovered new exit (range 10) 1742 | -10/Exiles | Entered Mines 1755 | -9/Mines | Learned location of 1 exit from Lower Caves 1851 | -9/Mines | Discovered new exit (range 7) 1861 | -9/Mines | Entered Materials 1861 | -8/Materials | Evolved 4 slots: Propulsion x1, Utility x3 2170 | -8/Materials | Build established: Scavenger-Mutant 2581 | -8/Materials | Discovered new exit (range 16) 2850 | -8/Materials | Build established: Mutant 2875 | -8/Materials | Discovered new exit (range 15) 3198 | -8/Materials | Identified exit to Garrison 3198 | -8/Materials | Entered Garrison 3198 | -8/Garrison | Warlord forces raided the area 3270 | -8/Garrison | Triggered checkpoint 3302 | -8/Garrison | Triggered checkpoint 3310 | -8/Garrison | Triggered checkpoint 3372 | -8/Garrison | Triggered checkpoint 3388 | -8/Garrison | Warlord forces retreated 3428 | -8/Garrison | Triggered checkpoint 3452 | -8/Garrison | Triggered checkpoint 3699 | -8/Garrison | Build established: Scavenger-Mutant 3704 | -8/Garrison | Discovered new exit (range 10) 3739 | -8/Garrison | Garrison Relay disabled 4018 | -8/Garrison | Discovered new exit (range 12) 4022 | -8/Garrison | Triggered checkpoint 4324 | -8/Garrison | Triggered checkpoint 4338 | -8/Garrison | Discovered new exit (range 57) 4338 | -8/Garrison | Discovered new exit (range 18) 4338 | -8/Garrison | Discovered new exit (range 75) 4338 | -8/Garrison | Discovered new exit (range 58) 4634 | -8/Garrison | Triggered checkpoint 4647 | -8/Garrison | Entered Materials 4647 | -8/Materials | Accompanied by 3 allies 4914 | -8/Materials | Identified exit to Garrison 4914 | -8/Materials | Entered Garrison 4914 | -8/Garrison | Accompanied by 2 allies 4946 | -8/Garrison | Triggered checkpoint 4972 | -8/Garrison | Garrison Relay disabled 5052 | -8/Garrison | Triggered checkpoint 5115 | -8/Garrison | Discovered new exit (range 9) 5180 | -8/Garrison | Triggered checkpoint 5211 | -8/Garrison | Garrison Relay disabled 5402 | -8/Garrison | Triggered checkpoint 5551 | -8/Garrison | Garrison Relay disabled 5584 | -8/Garrison | Discovered new exit (range 10) 5820 | -8/Garrison | Discovered new exit (range 10) 5852 | -8/Garrison | Triggered checkpoint 5889 | -8/Garrison | Garrison Relay disabled 6155 | -8/Garrison | Entered Factory 6155 | -7/Factory | Evolved 2 slots: Propulsion x1, Utility x1 6292 | -7/Factory | Crushed by falling debris 6323 | -7/Factory | Lost 3 parts (1p2u) 6641 | -7/Factory | Build established: Mutant 6839 | -7/Factory | Identified exit to Garrison 6840 | -7/Factory | System corruption reached 10% 6851 | -7/Factory | Entered Garrison 6884 | -7/Garrison | Triggered checkpoint 7052 | -7/Garrison | Triggered checkpoint 7184 | -7/Garrison | Lost 4 parts (2n1u1w) 7189 | -7/Garrison | Discovered new exit (range 10) 7258 | -7/Garrison | Triggered checkpoint 7311 | -7/Garrison | Garrison Relay disabled 7401 | -7/Garrison | Garrison Relay disabled 7404 | -7/Garrison | Garrison Relay disabled 7459 | -7/Garrison | Core integrity fell below 50% 7485 | -7/Garrison | Lost 10 parts (1p6n1u2w) 7544 | -7/Garrison | Garrison Relay disabled 7557 | -7/Garrison | Garrison Relay disabled 8034 | -7/Garrison | Build established: Scavenger-Mutant 8063 | -7/Garrison | Attempted to access garrison exit controls, blocked by remote lockdown 8116 | -7/Garrison | Triggered checkpoint 8125 | -7/Garrison | Triggered checkpoint 8200 | -7/Garrison | Triggered checkpoint 8208 | -7/Garrison | Discovered new exit (range 14) 8230 | -7/Garrison | Entered Factory 8230 | -6/Factory | Evolved 2 slots: Power x1, Utility x1 8366 | -6/Factory | Discovered new exit (range 14) 8390 | -6/Factory | Identified exit to Lower Caves 8433 | -6/Factory | Entered Lower Caves 8434 | -6/Lower Caves | Identified exit to Lower Caves 8470 | -6/Lower Caves | Met a Warlord Commander 8471 | -6/Lower Caves | Learned location of Warlord (-4) 8474 | -6/Lower Caves | Found Encrypted Comm Array 8581 | -6/Lower Caves | Build established: Mutant 8624 | -6/Lower Caves | Attracted the attention of an 0b10 checkpoint 8729 | -6/Lower Caves | Learned Factory interactive machine intel 8906 | -6/Lower Caves | Entered another Lower Caves area 8933 | -6/Lower Caves | Discovered new exit (range 4) 8945 | -6/Lower Caves | Lost 6 parts (2p2n1u1w) 8978 | -6/Lower Caves | Found Alien Artifact 9215 | -6/Lower Caves | Encountered a Warlord checkpoint 9810 | -6/Lower Caves | Build established: Derelict-Mutant 9873 | -6/Lower Caves | Spotted B-75 Beast 10377 | -6/Lower Caves | Discovered new exit (range 8) 10531 | -6/Lower Caves | Identified exit to Zion 10790 | -6/Lower Caves | Entered Zion 10826 | -6/Zion | Given A8's code to call for help 10882 | -6/Zion | Found CR-A16's Pointy Stick 10953 | -6/Zion | Discovered new exit (range 9) 11303 | -6/Zion | Identified exit to Deep Caves 11365 | -6/Zion | Learned Factory emergency access door positions 11572 | -6/Zion | Learned location of Quarantine (-2) 12099 | -6/Zion | Found Prototype Device 12297 | -6/Zion | Found Prototype Special Weapon 12300 | -6/Zion | Found Prototype Special Weapon 12304 | -6/Zion | Found Prototype Special Weapon 12308 | -6/Zion | Found Prototype Special Weapon 12379 | -6/Zion | Gained Derelict followers 13032 | -6/Zion | Saw the warning signs outside the Deep Caves entrance 13039 | -6/Zion | Enhanced Grunt warped into view, answering call for help 13042 | -6/Zion | Enhanced Grunt warped into view, answering call for help 13050 | -6/Zion | Identified RU-N14's Throwing Claymores (x4) 13058 | -6/Zion | Entered Deep Caves 13058 | -6/Deep Caves | Accompanied by 8 allies 13062 | -6/Deep Caves | Met 5H-AD0 13361 | -6/Deep Caves | Build established: Scavenger-Mutant 13585 | -6/Deep Caves | Z-Facility disabled 13629 | -6/Deep Caves | Attacked by Z-Imprinter 13629 | -6/Deep Caves | Destroyed Z-Imprinter 13794 | -6/Deep Caves | Found Prototype Protection 13794 | -6/Deep Caves | Identified Zio. Weapon Casing 14324 | -6/Deep Caves | Found Prototype Protection 14324 | -6/Deep Caves | Identified Zio. Heavy Carapace 14362 | -6/Deep Caves | Found Zio. Heavy Carapace 14437 | -6/Deep Caves | Found Zio. Weapon Casing 14707 | -6/Deep Caves | Discovered new exit (range 7) 14933 | -6/Deep Caves | Spotted as-00692 14947 | -6/Deep Caves | Destroyed as-00692 14965 | -6/Deep Caves | Triggered Deep Caves wall 14965 | -6/Deep Caves | Spotted AS-62156 14971 | -6/Deep Caves | Destroyed AS-62156 14973 | -6/Deep Caves | Spotted AS-86062 14979 | -6/Deep Caves | Spotted as-20270 14982 | -6/Deep Caves | Core integrity fell below 50% 14982 | -6/Deep Caves | Exposed GOLEM chamber 14991 | -6/Deep Caves | Core integrity fell below 20% 14997 | -6/Deep Caves | Destroyed by as-20270 with Assembled Focal Cannon Last Messages --------------- 14990_ HV Slug penetrates as-03060. 14990_ as-03060 suffers critical hit (Destroy). 14990_ as-03060 destroyed. 14990_ HV Slug penetrates as-58225. 14990_ as-58225 destroyed. 14991_ Extracted 72 energy. 14991_ as-02731 destroyed. 14991_ Destroyed Imp. Heat Sink. 14991_ Destroyed Lgt. Deuterium Engine. 14991_ as-59569 destroyed. 14992_ Extracted 56 energy. 14992_ as-48191 destroyed. 14993_ HV Slug penetrates as-50929. 14993_ HV Slug penetrates AS-86062. 14994_ RU-N14's Throwing Claymores destroyed. 14995_ Extracted 26 energy. 14995_ as-50929 destroyed. 14996_ Destroyed Prototype Device. 14997_ Extracted 26 energy. 14997_ as-20270 GOLEM Unit beginning Prototype Device integration. Map ----- +----------------------------------------------------+ | ????????????????????????????????## #??? | | ????????????????????????????????# ##??? | | ????????????????????????????????# ##???? | | ????????????????????????????????## ### | | ?????????????????????????????????# | | ?????????????????????????????????# ### # | | ?????????????????????????????????### #??? # | | ??????????????????????????????????## ### # | | ??????????????????????????????????# # | | ??????????????????????????????????# # | | ???????????????? ?????????????# ###### | | ?????????????? ??????????## #### | | ??????????? ??????????# ## | | ?????????" G ??????????## | | ?????????" M #???#???????## | | ????????"" h #?? #????????### | | ??????### ### ###????????# | | ??????" * a # ????###### # | | ????? ##???## # | | ????? * * ##### ## | | ????? g ?# ####? | | ???? A / #??# ##???# | | ???? ! ##?# ##?#### | | ??? ! !! #?# #??# | | ??? * = #?## ##?#< | | ??????"! @ #??## #?#### | | ????????# hg = #???## #????? | | ???????"!" ! ! g! #????# ##????? | | ?????????" * / #???# ##?????? | | ?????????" // / #???# ##??????? | | ?????????" / ##??##????????? | | ????????"" / #????????????? | | ????????# s/! % #????????????? | | ????????" #???????####?# | | ????????" h ######### ### | | ????????" ! | | ????????""" !! ! b | | ????????" ! | | ????????"" ####### | | ????????" #????# | | ????????"" "#????# | | ????????" " # ##????# | | ????????" #### ## ## ##?????## # | | ?????????"" ##???# ?# ####???????## ## | | ?????????? ?????##?# #???????????######? | | ??????????###??????????#??????????????????? | | | | | | | | | +----------------------------------------------------+ Best States ------------- Heat Dissipation 63 Energy Generation 40 Energy Capacity 800 Matter Stores 300 Matter Capacity 300 Sight Range 16 Terrain Scan Density 10 Armor Coverage 1200 Power Shielding 66 Weapon Shielding 100 Evasion (%) 55 Targeting Accuracy 12 Armor Integrity Analysis 30 Recoil Reduction 4 Offensive Hacking 10 Item Schematics ----------------- None Robot Schematics ------------------ None Fabricated ------------ Nothing Alien Tech Used ----------------- None Achievements -------------- None Challenges ------------ None Game ------ Seed RemoteSuspensionCompressor Manual? 0 Play Time 01:09:45 Cumulative 450.6 hours Start 2023.02.04 @ 20:00:57 End 2023.02.04 @ 21:53:22 Sessions 5 Manual Loads 0 Difficulty Rogue Special Mode None Game No. 449 Rogue 449 Adventurer 0 Explorer 0 Win Type - Total 32 Types 18/3/4/1/2/1/3/0/0 Lore% 92 Gallery% 94 Achievement% 82 Wizard Run 0 Options --------- ASCII 0 Keyboard 0 Movement Arrows Keybinds 0 Fullscreen 2 Font 24/Smallcaps Map View 76x50 Tactical HUD 1 Map Filters NONE Filters NONE Steam 1 RUN: 8d8bf3ba-493f-41da-83df-8493f66171aa